[Event "Early-Titled-Tuesday-Blitz-December-26-2023"]
[Site "Chess.com"]
[Date "2023.12.26"]
[Round "7"]
[White "jcmesafischer"]
[Black "jlmanzanares"]
[Result "1-0"]
[WhiteElo "2339"]
[BlackElo "2017"]
[TimeControl "180+1"]
[EndTime "9:16:31 PST"]
[Termination "jcmesafischer won by checkmate"]

1. e4 {[%clk 0:02:56.7]} 1... d6 {[%clk 0:02:56.4]} 2. d4 {[%clk 0:02:56.1]}
2... Nf6 {[%clk 0:02:55.6]} 3. Nc3 {[%clk 0:02:55.4]} 3... g6 {[%clk 0:02:56]}
4. Nf3 {[%clk 0:02:52.6]} 4... Bg7 {[%clk 0:02:56]} 5. Bc4 {[%clk 0:02:52.1]}
5... c6 {[%clk 0:02:56.1]} 6. Qe2 {[%clk 0:02:36.8]} 6... O-O {[%clk 0:02:55.4]}
7. O-O {[%clk 0:02:34.4]} 7... Bg4 {[%clk 0:02:50.2]} 8. e5 {[%clk 0:02:30.7]}
8... dxe5 {[%clk 0:02:48.7]} 9. dxe5 {[%clk 0:02:31.6]} 9... Nfd7 {[%clk
0:02:48.4]} 10. e6 {[%clk 0:02:29.8]} 10... Ne5 {[%clk 0:02:40.9]} 11. exf7+
{[%clk 0:02:23.1]} 11... Kh8 {[%clk 0:02:38.5]} 12. Bf4 {[%clk 0:02:12.6]} 12...
Nxf3+ {[%clk 0:02:33.4]} 13. gxf3 {[%clk 0:02:12.5]} 13... Bh3 {[%clk
0:02:33.2]} 14. Rfd1 {[%clk 0:02:05.3]} 14... Qa5 {[%clk 0:02:30.5]} 15. Qxe7
{[%clk 0:01:58.5]} 15... Na6 {[%clk 0:02:26.3]} 16. Ne4 {[%clk 0:01:28.8]} 16...
Qf5 {[%clk 0:02:19]} 17. Qg5 {[%clk 0:01:19.8]} 17... b5 {[%clk 0:01:59.3]} 18.
Bb3 {[%clk 0:01:11.5]} 18... Rxf7 {[%clk 0:01:38.2]} 19. Bxf7 {[%clk 0:01:07.3]}
19... Qxf7 {[%clk 0:01:39.1]} 20. Be5 {[%clk 0:00:41.1]} 20... Rf8 {[%clk
0:01:29]} 21. Bxg7+ {[%clk 0:00:36.3]} 21... Kxg7 {[%clk 0:01:29.9]} 22. Qe5+
{[%clk 0:00:35.4]} 22... Kg8 {[%clk 0:01:24.1]} 23. Ng5 {[%clk 0:00:25.2]} 23...
Qf5 {[%clk 0:01:10]} 24. Qe7 {[%clk 0:00:16.9]} 24... Nc5 {[%clk 0:00:24.3]} 25.
Qxh7# {[%clk 0:00:15.5]} 1-0

[Event "Early-Titled-Tuesday-Blitz-December-26-2023"]
[Site "Chess.com"]
[Date "2023.12.26"]
[Round "7"]
[White "IlanSchnaider"]
[Black "HajiyevKanan"]
[Result "0-1"]
[WhiteElo "2674"]
[BlackElo "2610"]
[TimeControl "180+1"]
[EndTime "9:16:32 PST"]
[Termination "HajiyevKanan won by checkmate"]

1. e4 {[%clk 0:03:00.9]} 1... c6 {[%clk 0:02:59.2]} 2. Nf3 {[%clk 0:03:00.9]}
2... d5 {[%clk 0:03:00.1]} 3. Nc3 {[%clk 0:03:01.3]} 3... a6 {[%clk 0:03:00.2]}
4. d4 {[%clk 0:02:55.7]} 4... Bg4 {[%clk 0:03:00]} 5. Be2 {[%clk 0:02:55.5]}
5... e6 {[%clk 0:03:00]} 6. h3 {[%clk 0:02:54.8]} 6... Bh5 {[%clk 0:03:00]} 7.
O-O {[%clk 0:02:55.4]} 7... Nf6 {[%clk 0:02:59.9]} 8. exd5 {[%clk 0:02:43.7]}
8... cxd5 {[%clk 0:03:00.8]} 9. Bf4 {[%clk 0:02:38]} 9... Nc6 {[%clk 0:02:59.3]}
10. Ne5 {[%clk 0:02:32.6]} 10... Bxe2 {[%clk 0:02:57.6]} 11. Nxe2 {[%clk
0:02:31.1]} 11... Bd6 {[%clk 0:02:57.1]} 12. c3 {[%clk 0:02:27.1]} 12... Bxe5
{[%clk 0:02:54.2]} 13. dxe5 {[%clk 0:02:27.1]} 13... Nd7 {[%clk 0:02:54.6]} 14.
Nd4 {[%clk 0:02:11.5]} 14... Ndxe5 {[%clk 0:02:50]} 15. Re1 {[%clk 0:02:02.9]}
15... Ng6 {[%clk 0:02:48.5]} 16. Be3 {[%clk 0:01:23.5]} 16... O-O {[%clk
0:02:48]} 17. Nxc6 {[%clk 0:01:23.3]} 17... bxc6 {[%clk 0:02:48.8]} 18. Bc5
{[%clk 0:01:23.3]} 18... Re8 {[%clk 0:02:49.3]} 19. a4 {[%clk 0:01:21.9]} 19...
Qg5 {[%clk 0:02:48.4]} 20. a5 {[%clk 0:01:17.7]} 20... e5 {[%clk 0:02:46.5]} 21.
c4 {[%clk 0:01:11.1]} 21... e4 {[%clk 0:02:43.9]} 22. Be3 {[%clk 0:01:02.9]}
22... Qf5 {[%clk 0:02:28.7]} 23. cxd5 {[%clk 0:00:55.3]} 23... cxd5 {[%clk
0:02:29.6]} 24. Ra4 {[%clk 0:00:38.2]} 24... Ne5 {[%clk 0:02:27]} 25. Rd4 {[%clk
0:00:35.4]} 25... Red8 {[%clk 0:02:21.1]} 26. Kh1 {[%clk 0:00:30.1]} 26... Nc6
{[%clk 0:02:12.5]} 27. Rd2 {[%clk 0:00:20.7]} 27... Nxa5 {[%clk 0:02:00.3]} 28.
Bb6 {[%clk 0:00:20.4]} 28... Nc4 {[%clk 0:02:01]} 29. Bxd8 {[%clk 0:00:08.5]}
29... Nxd2 {[%clk 0:02:01.2]} 30. Qxd2 {[%clk 0:00:06.5]} 30... Rxd8 {[%clk
0:02:00.7]} 31. Rc1 {[%clk 0:00:06.1]} 31... h6 {[%clk 0:01:51.1]} 32. Qa5
{[%clk 0:00:05.6]} 32... Qd7 {[%clk 0:01:37.2]} 33. Qxa6 {[%clk 0:00:05]} 33...
d4 {[%clk 0:01:37.5]} 34. Re1 {[%clk 0:00:04.4]} 34... d3 {[%clk 0:01:37.4]} 35.
Qa5 {[%clk 0:00:02.4]} 35... d2 {[%clk 0:01:37]} 36. Rd1 {[%clk 0:00:03]} 36...
Qd4 {[%clk 0:01:35.1]} 37. b3 {[%clk 0:00:02.4]} 37... Rd5 {[%clk 0:01:33.7]}
38. Qa8+ {[%clk 0:00:02.3]} 38... Kh7 {[%clk 0:01:34.3]} 39. Qc8 {[%clk
0:00:02.1]} 39... Qxf2 {[%clk 0:01:33.1]} 40. Qg4 {[%clk 0:00:02.2]} 40... f5
{[%clk 0:01:28.4]} 41. Qh5 {[%clk 0:00:02.7]} 41... e3 {[%clk 0:01:26.1]} 42.
Kh2 {[%clk 0:00:01.6]} 42... e2 {[%clk 0:01:24.4]} 43. Qf7 {[%clk 0:00:01.5]}
43... exd1=Q {[%clk 0:01:20.2]} 44. Qxd5 {[%clk 0:00:02.4]} 44... Qdg1# {[%clk
0:01:20.2]} 0-1

[Event "Early-Titled-Tuesday-Blitz-December-26-2023"]
[Site "Chess.com"]
[Date "2023.12.26"]
[Round "7"]
[White "Drags95"]
[Black "rasmussvane"]
[Result "0-1"]
[WhiteElo "2796"]
[BlackElo "2931"]
[TimeControl "180+1"]
[EndTime "9:16:33 PST"]
[Termination "rasmussvane won by resignation"]

1. d4 {[%clk 0:03:00.9]} 1... d5 {[%clk 0:02:57.8]} 2. c4 {[%clk 0:03:01.1]}
2... e6 {[%clk 0:02:57.8]} 3. Nf3 {[%clk 0:02:59.8]} 3... a6 {[%clk 0:02:57.7]}
4. Bg5 {[%clk 0:02:59.7]} 4... Be7 {[%clk 0:02:57.5]} 5. Bxe7 {[%clk 0:02:59.5]}
5... Nxe7 {[%clk 0:02:58.4]} 6. Nbd2 {[%clk 0:02:59.2]} 6... O-O {[%clk
0:02:49.4]} 7. g3 {[%clk 0:02:59.8]} 7... Nd7 {[%clk 0:02:48.6]} 8. Bg2 {[%clk
0:02:59.7]} 8... c5 {[%clk 0:02:43.3]} 9. O-O {[%clk 0:02:59.5]} 9... dxc4
{[%clk 0:02:39.6]} 10. Nxc4 {[%clk 0:02:58.9]} 10... b5 {[%clk 0:02:39.9]} 11.
Nce5 {[%clk 0:02:44.4]} 11... c4 {[%clk 0:02:24.7]} 12. Ng5 {[%clk 0:01:44.8]}
12... Ra7 {[%clk 0:02:16.7]} 13. a4 {[%clk 0:01:44.7]} 13... h6 {[%clk
0:01:22.8]} 14. Ne4 {[%clk 0:01:34.7]} 14... Qb6 {[%clk 0:01:23]} 15. b3 {[%clk
0:01:17.4]} 15... cxb3 {[%clk 0:01:17.6]} 16. Qxb3 {[%clk 0:01:18.1]} 16... Qxd4
{[%clk 0:01:12.7]} 17. Nxd7 {[%clk 0:01:10.2]} 17... Bxd7 {[%clk 0:01:13.3]} 18.
Rfd1 {[%clk 0:01:00.8]} 18... Qe5 {[%clk 0:01:04.4]} 19. Qa3 {[%clk 0:00:44.8]}
19... Nd5 {[%clk 0:00:55.8]} 20. Nc5 {[%clk 0:00:45.3]} 20... b4 {[%clk
0:00:55.1]} 21. Qb3 {[%clk 0:00:39.1]} 21... Bc6 {[%clk 0:00:50.5]} 22. e4
{[%clk 0:00:13.8]} 22... Nc3 {[%clk 0:00:47.2]} 23. Nd3 {[%clk 0:00:13]} 23...
Qb8 {[%clk 0:00:42.2]} 24. Re1 {[%clk 0:00:12.2]} 24... a5 {[%clk 0:00:42.5]}
25. Rac1 {[%clk 0:00:10.1]} 25... Rd8 {[%clk 0:00:41.9]} 26. Nf4 {[%clk
0:00:09.8]} 26... Bxa4 {[%clk 0:00:40.5]} 27. Qb2 {[%clk 0:00:08.3]} 27... Bb5
{[%clk 0:00:39.6]} 28. e5 {[%clk 0:00:06.9]} 28... Rad7 {[%clk 0:00:39.7]} 0-1

[Event "Early-Titled-Tuesday-Blitz-December-26-2023"]
[Site "Chess.com"]
[Date "2023.12.26"]
[Round "7"]
[White "malakismayil"]
[Black "Sofia_Blokhin"]
[Result "1-0"]
[WhiteElo "2528"]
[BlackElo "2318"]
[TimeControl "180+1"]
[EndTime "9:16:45 PST"]
[Termination "malakismayil won on time"]

1. e4 {[%clk 0:03:00.9]} 1... c5 {[%clk 0:02:59]} 2. Nf3 {[%clk 0:02:59.7]} 2...
d6 {[%clk 0:02:58.9]} 3. Bb5+ {[%clk 0:02:59.2]} 3... Bd7 {[%clk 0:02:56.6]} 4.
Bxd7+ {[%clk 0:02:57.6]} 4... Qxd7 {[%clk 0:02:57.5]} 5. c4 {[%clk 0:02:56]}
5... e5 {[%clk 0:02:57.1]} 6. O-O {[%clk 0:02:51.9]} 6... Nc6 {[%clk 0:02:57.2]}
7. Nc3 {[%clk 0:02:52.5]} 7... Be7 {[%clk 0:02:56.4]} 8. a3 {[%clk 0:02:53]}
8... Bd8 {[%clk 0:02:54.7]} 9. b4 {[%clk 0:02:51.5]} 9... b6 {[%clk 0:02:51.9]}
10. bxc5 {[%clk 0:02:47.6]} 10... bxc5 {[%clk 0:02:46.4]} 11. Rb1 {[%clk
0:02:47.9]} 11... Nge7 {[%clk 0:02:38.9]} 12. d3 {[%clk 0:02:43]} 12... Ng6
{[%clk 0:02:37.8]} 13. Nd5 {[%clk 0:02:40.8]} 13... O-O {[%clk 0:02:35.4]} 14.
Be3 {[%clk 0:02:16.8]} 14... f5 {[%clk 0:02:32.9]} 15. Rb3 {[%clk 0:02:08.1]}
15... f4 {[%clk 0:02:27.7]} 16. Bd2 {[%clk 0:02:05.6]} 16... Nh4 {[%clk
0:02:12.7]} 17. Bc3 {[%clk 0:01:55.1]} 17... Nxf3+ {[%clk 0:01:58]} 18. Qxf3
{[%clk 0:01:56]} 18... g5 {[%clk 0:01:58]} 19. h3 {[%clk 0:01:53.7]} 19... Qf7
{[%clk 0:01:50.3]} 20. Rfb1 {[%clk 0:01:49.7]} 20... Qg6 {[%clk 0:01:13.7]} 21.
Rb7 {[%clk 0:01:43.4]} 21... Rf7 {[%clk 0:01:13.9]} 22. Rxf7 {[%clk 0:01:14.3]}
22... Qxf7 {[%clk 0:01:14.8]} 23. h4 {[%clk 0:01:09.3]} 23... h6 {[%clk
0:01:08.3]} 24. hxg5 {[%clk 0:01:08.7]} 24... hxg5 {[%clk 0:01:08]} 25. Qg4
{[%clk 0:01:08.2]} 25... Kh7 {[%clk 0:00:25.1]} 26. f3 {[%clk 0:00:58.6]} 26...
Kg6 {[%clk 0:00:21.8]} 27. Kf2 {[%clk 0:00:58]} 27... Nd4 {[%clk 0:00:08.2]} 28.
Bxd4 {[%clk 0:00:56.5]} 28... cxd4 {[%clk 0:00:08.6]} 29. Rh1 {[%clk 0:00:56.5]}
29... Kg7 {[%clk 0:00:05.9]} 30. Qh3 {[%clk 0:00:50.5]} 30... Qg6 {[%clk
0:00:04.6]} 31. Qh8+ {[%clk 0:00:49.3]} 31... Kf7 {[%clk 0:00:05.1]} 32. Rh7+
{[%clk 0:00:49.3]} 32... Ke6 {[%clk 0:00:04.2]} 33. Rh6 {[%clk 0:00:47.7]} 1-0

[Event "Early-Titled-Tuesday-Blitz-December-26-2023"]
[Site "Chess.com"]
[Date "2023.12.26"]
[Round "7"]
[White "Gyulamiryan-koryun"]
[Black "AndresDelgado77"]
[Result "1-0"]
[WhiteElo "2023"]
[BlackElo "2308"]
[TimeControl "180+1"]
[EndTime "9:16:51 PST"]
[Termination "Gyulamiryan-koryun won on time"]

1. e4 {[%clk 0:02:58.1]} 1... e6 {[%clk 0:02:55.8]} 2. d4 {[%clk 0:02:57.3]}
2... d5 {[%clk 0:02:52.3]} 3. Nd2 {[%clk 0:02:57]} 3... Nc6 {[%clk 0:02:51.1]}
4. Ne2 {[%clk 0:02:51.4]} 4... Nf6 {[%clk 0:02:44.5]} 5. e5 {[%clk 0:02:51.1]}
5... Nd7 {[%clk 0:02:42.9]} 6. c3 {[%clk 0:02:49.7]} 6... Be7 {[%clk 0:02:33.9]}
7. Ng3 {[%clk 0:02:42.7]} 7... O-O {[%clk 0:02:28.8]} 8. Bd3 {[%clk 0:02:42.2]}
8... f6 {[%clk 0:02:24.4]} 9. exf6 {[%clk 0:02:38.7]} 9... Bxf6 {[%clk
0:02:21.8]} 10. O-O {[%clk 0:02:39.1]} 10... e5 {[%clk 0:02:21.4]} 11. Qh5
{[%clk 0:02:25.8]} 11... h6 {[%clk 0:01:44.7]} 12. Qg6 {[%clk 0:02:24.3]} 12...
e4 {[%clk 0:01:39]} 13. Ngxe4 {[%clk 0:02:20.6]} 13... dxe4 {[%clk 0:01:34.9]}
14. Bxe4 {[%clk 0:02:20.4]} 14... Re8 {[%clk 0:01:30]} 15. Qh7+ {[%clk
0:02:15.3]} 15... Kf8 {[%clk 0:01:27.7]} 16. Bg6 {[%clk 0:02:13.1]} 16... Re2
{[%clk 0:01:14.8]} 17. d5 {[%clk 0:02:07.2]} 17... Nce5 {[%clk 0:01:00]} 18. Ne4
{[%clk 0:02:01.4]} 18... Nxg6 {[%clk 0:00:55.3]} 19. Qxg6 {[%clk 0:02:01.3]}
19... Ne5 {[%clk 0:00:52.9]} 20. Qh7 {[%clk 0:01:59.8]} 20... Rxe4 {[%clk
0:00:33.9]} 21. Qxe4 {[%clk 0:01:57.7]} 21... Bd7 {[%clk 0:00:33.8]} 22. Bf4
{[%clk 0:01:33.6]} 22... Nf7 {[%clk 0:00:31.1]} 23. Rfe1 {[%clk 0:01:30.1]}
23... Be8 {[%clk 0:00:18.2]} 24. Qb4+ {[%clk 0:01:26.6]} 24... Kg8 {[%clk
0:00:17.5]} 25. Qxb7 {[%clk 0:01:26.4]} 25... Nd6 {[%clk 0:00:13.3]} 26. Qb4
{[%clk 0:01:21.6]} 26... Rb8 {[%clk 0:00:12.2]} 27. Qc5 {[%clk 0:01:16.5]} 27...
Rxb2 {[%clk 0:00:11.2]} 28. Bxd6 {[%clk 0:01:15]} 28... cxd6 {[%clk 0:00:10.4]}
29. Qa3 {[%clk 0:01:13.4]} 29... Rb7 {[%clk 0:00:07.8]} 30. Rac1 {[%clk
0:01:11.8]} 30... Bf7 {[%clk 0:00:07]} 31. Qa4 {[%clk 0:01:09.9]} 31... Qb6
{[%clk 0:00:05.3]} 32. Qc6 {[%clk 0:01:09.1]} 32... Qxc6 {[%clk 0:00:04.4]} 33.
dxc6 {[%clk 0:01:09.1]} 33... Rc7 {[%clk 0:00:05.3]} 34. Re4 {[%clk 0:01:02.7]}
34... Rxc6 {[%clk 0:00:05.1]} 35. Ra4 {[%clk 0:01:02.5]} 35... a6 {[%clk
0:00:03.7]} 36. h3 {[%clk 0:00:58.9]} 1-0

[Event "Early-Titled-Tuesday-Blitz-December-26-2023"]
[Site "Chess.com"]
[Date "2023.12.26"]
[Round "7"]
[White "jeetjain"]
[Black "DeyanKostov"]
[Result "1-0"]
[WhiteElo "2582"]
[BlackElo "2484"]
[TimeControl "180+1"]
[EndTime "9:16:54 PST"]
[Termination "jeetjain won by resignation"]

1. Nf3 {[%clk 0:02:55]} 1... d5 {[%clk 0:03:00.1]} 2. g3 {[%clk 0:02:55.9]} 2...
Bg4 {[%clk 0:03:00.2]} 3. Bg2 {[%clk 0:02:56.3]} 3... c6 {[%clk 0:03:00.6]} 4.
O-O {[%clk 0:02:56.9]} 4... Nd7 {[%clk 0:03:01.1]} 5. d3 {[%clk 0:02:56.7]} 5...
e6 {[%clk 0:03:01.5]} 6. Nbd2 {[%clk 0:02:57.3]} 6... Bd6 {[%clk 0:03:01.8]} 7.
c4 {[%clk 0:02:57]} 7... Ne7 {[%clk 0:03:02.2]} 8. b3 {[%clk 0:02:57.6]} 8...
O-O {[%clk 0:03:02.2]} 9. Bb2 {[%clk 0:02:58.2]} 9... f6 {[%clk 0:03:02.7]} 10.
a3 {[%clk 0:02:58.6]} 10... Qc7 {[%clk 0:03:00.4]} 11. Qc2 {[%clk 0:02:58.8]}
11... Rae8 {[%clk 0:03:00.1]} 12. e4 {[%clk 0:02:58.8]} 12... Qb8 {[%clk
0:02:58.5]} 13. b4 {[%clk 0:02:57]} 13... Bh5 {[%clk 0:02:53.1]} 14. Rfe1 {[%clk
0:02:56.9]} 14... Bf7 {[%clk 0:02:47.5]} 15. Rac1 {[%clk 0:02:56.3]} 15... e5
{[%clk 0:02:45.4]} 16. d4 {[%clk 0:02:55.1]} 16... exd4 {[%clk 0:02:42]} 17.
Nxd4 {[%clk 0:02:55]} 17... dxe4 {[%clk 0:02:18.3]} 18. Nxe4 {[%clk 0:02:54.2]}
18... Be5 {[%clk 0:02:17.8]} 19. f4 {[%clk 0:02:51.9]} 19... Bc7 {[%clk
0:02:17.6]} 20. Bh3 {[%clk 0:02:47]} 20... Nb6 {[%clk 0:02:13.6]} 21. Ne6 {[%clk
0:02:44.7]} 21... Bxe6 {[%clk 0:02:13.7]} 22. Bxe6+ {[%clk 0:02:45.6]} 22... Kh8
{[%clk 0:02:14.2]} 23. c5 {[%clk 0:02:38.8]} 23... Nbd5 {[%clk 0:02:12.8]} 24.
Rcd1 {[%clk 0:02:34.2]} 24... a5 {[%clk 0:02:02.9]} 25. b5 {[%clk 0:02:30]}
25... Ng6 {[%clk 0:01:46.9]} 26. Bd7 {[%clk 0:02:22.7]} 26... Bxf4 {[%clk
0:01:32.8]} 27. gxf4 {[%clk 0:02:17.4]} 27... Qxf4 {[%clk 0:01:30.5]} 28. Bxe8
{[%clk 0:02:08.6]} 28... Rxe8 {[%clk 0:01:31.4]} 29. bxc6 {[%clk 0:01:56.3]}
29... bxc6 {[%clk 0:01:30.3]} 30. Ng3 {[%clk 0:01:38.8]} 30... Rb8 {[%clk
0:01:22.6]} 31. Bd4 {[%clk 0:01:30.4]} 31... Nh4 {[%clk 0:01:20.8]} 32. Qf2
{[%clk 0:00:51]} 32... Qg4 {[%clk 0:01:10.5]} 33. Rd3 {[%clk 0:00:46.4]} 33...
Nf4 {[%clk 0:00:58.7]} 34. Rde3 {[%clk 0:00:41.8]} 34... Nh3+ {[%clk 0:00:49.2]}
35. Kf1 {[%clk 0:00:42.1]} 35... Qg6 {[%clk 0:00:41]} 36. Qc2 {[%clk 0:00:38.5]}
36... f5 {[%clk 0:00:31.4]} 37. Re6 {[%clk 0:00:36.9]} 37... Qf7 {[%clk
0:00:29.6]} 38. Re7 {[%clk 0:00:36.6]} 1-0

[Event "Early-Titled-Tuesday-Blitz-December-26-2023"]
[Site "Chess.com"]
[Date "2023.12.26"]
[Round "7"]
[White "Manukyan_Artak"]
[Black "SergioMoralesG"]
[Result "1-0"]
[WhiteElo "2605"]
[BlackElo "2391"]
[TimeControl "180+1"]
[EndTime "9:16:58 PST"]
[Termination "Manukyan_Artak won on time"]

1. e4 {[%clk 0:02:51.1]} 1... c5 {[%clk 0:02:43.8]} 2. Nf3 {[%clk 0:02:49.3]}
2... e6 {[%clk 0:02:42.9]} 3. c3 {[%clk 0:02:45.4]} 3... Nf6 {[%clk 0:02:42]} 4.
e5 {[%clk 0:02:41.5]} 4... Nd5 {[%clk 0:02:41.8]} 5. d4 {[%clk 0:02:42.2]} 5...
cxd4 {[%clk 0:02:41.9]} 6. cxd4 {[%clk 0:02:43.1]} 6... d6 {[%clk 0:02:42.3]} 7.
Nc3 {[%clk 0:02:43.7]} 7... Nxc3 {[%clk 0:02:33.6]} 8. bxc3 {[%clk 0:02:44.6]}
8... dxe5 {[%clk 0:02:33.8]} 9. Nxe5 {[%clk 0:02:43.5]} 9... Be7 {[%clk
0:02:33.8]} 10. Bd3 {[%clk 0:02:42.4]} 10... O-O {[%clk 0:02:30.8]} 11. Qh5
{[%clk 0:02:33.8]} 11... f5 {[%clk 0:02:21.4]} 12. O-O {[%clk 0:02:06]} 12...
Nd7 {[%clk 0:02:15.9]} 13. Bf4 {[%clk 0:02:05.9]} 13... Nxe5 {[%clk 0:02:07.6]}
14. Bxe5 {[%clk 0:02:02.1]} 14... Bf6 {[%clk 0:02:08.1]} 15. Rae1 {[%clk
0:01:44.1]} 15... Bd7 {[%clk 0:02:01.9]} 16. Bxf6 {[%clk 0:01:33.3]} 16... Qxf6
{[%clk 0:01:59.7]} 17. Re5 {[%clk 0:01:34.2]} 17... Rac8 {[%clk 0:01:51.3]} 18.
c4 {[%clk 0:01:32.7]} 18... Rfd8 {[%clk 0:01:48.4]} 19. Rfe1 {[%clk 0:01:26.6]}
19... Be8 {[%clk 0:01:44.7]} 20. Qf3 {[%clk 0:01:18.8]} 20... Bc6 {[%clk
0:01:12]} 21. Qe3 {[%clk 0:01:11.2]} 21... Qh4 {[%clk 0:00:58.6]} 22. f4 {[%clk
0:00:58.2]} 22... Qg4 {[%clk 0:00:38.2]} 23. d5 {[%clk 0:00:48.2]} 23... exd5
{[%clk 0:00:27]} 24. Bxf5 {[%clk 0:00:44.2]} 24... Qh4 {[%clk 0:00:19]} 25. Be6+
{[%clk 0:00:40.4]} 25... Kh8 {[%clk 0:00:18.1]} 26. Bxc8 {[%clk 0:00:40.5]}
26... h6 {[%clk 0:00:06.5]} 27. g3 {[%clk 0:00:32.2]} 27... Qf6 {[%clk
0:00:03.5]} 28. Bf5 {[%clk 0:00:32]} 28... d4 {[%clk 0:00:03.5]} 29. Re8+ {[%clk
0:00:27.4]} 29... Rxe8 {[%clk 0:00:02.6]} 30. Qxe8+ {[%clk 0:00:27.3]} 1-0

[Event "Early-Titled-Tuesday-Blitz-December-26-2023"]
[Site "Chess.com"]
[Date "2023.12.26"]
[Round "7"]
[White "Elsa167"]
[Black "Druid24"]
[Result "1-0"]
[WhiteElo "2978"]
[BlackElo "2693"]
[TimeControl "180+1"]
[EndTime "9:16:59 PST"]
[Termination "Elsa167 won by resignation"]

1. e4 {[%clk 0:03:00.9]} 1... c5 {[%clk 0:03:00.4]} 2. Nf3 {[%clk 0:03:00.7]}
2... e6 {[%clk 0:03:01.1]} 3. d4 {[%clk 0:03:00.7]} 3... cxd4 {[%clk 0:03:02]}
4. Nxd4 {[%clk 0:03:00.5]} 4... Nc6 {[%clk 0:03:02.6]} 5. Nc3 {[%clk 0:02:58.1]}
5... Nf6 {[%clk 0:03:03.2]} 6. Ndb5 {[%clk 0:02:54]} 6... d6 {[%clk 0:03:03.2]}
7. Bf4 {[%clk 0:02:52.3]} 7... e5 {[%clk 0:03:03.8]} 8. Bg5 {[%clk 0:02:53]}
8... a6 {[%clk 0:03:04.3]} 9. Na3 {[%clk 0:02:52.9]} 9... b5 {[%clk 0:03:04.9]}
10. Nd5 {[%clk 0:02:51.2]} 10... Be7 {[%clk 0:03:05]} 11. Bxf6 {[%clk
0:02:47.3]} 11... Bxf6 {[%clk 0:03:05.9]} 12. c3 {[%clk 0:02:47.4]} 12... O-O
{[%clk 0:02:49.1]} 13. Nc2 {[%clk 0:02:47.4]} 13... Bg5 {[%clk 0:02:49.7]} 14.
h4 {[%clk 0:02:45.7]} 14... Bh6 {[%clk 0:02:47.2]} 15. g3 {[%clk 0:02:42]} 15...
Ne7 {[%clk 0:02:43.6]} 16. Ncb4 {[%clk 0:02:39.2]} 16... Be6 {[%clk 0:02:40.4]}
17. a4 {[%clk 0:02:21.9]} 17... bxa4 {[%clk 0:02:37.7]} 18. Rxa4 {[%clk
0:02:13.1]} 18... a5 {[%clk 0:02:37.5]} 19. Nxe7+ {[%clk 0:02:01.9]} 19... Qxe7
{[%clk 0:02:38.4]} 20. Nd5 {[%clk 0:02:02.5]} 20... Qb7 {[%clk 0:02:36.9]} 21.
Ra2 {[%clk 0:01:51.9]} 21... Rfb8 {[%clk 0:02:20.2]} 22. Bc4 {[%clk 0:01:44.5]}
22... Kh8 {[%clk 0:02:03.8]} 23. O-O {[%clk 0:01:40.2]} 23... Qc6 {[%clk
0:01:58.9]} 24. Qd3 {[%clk 0:01:32.1]} 24... Qc5 {[%clk 0:01:42.4]} 25. Rfa1
{[%clk 0:01:28.8]} 25... Rc8 {[%clk 0:01:40.8]} 26. b3 {[%clk 0:01:24]} 26...
Bd7 {[%clk 0:01:28.1]} 27. Ne7 {[%clk 0:01:06.9]} 27... Re8 {[%clk 0:00:55.4]}
28. b4 {[%clk 0:00:50.4]} 28... axb4 {[%clk 0:00:37.1]} 29. Rxa8 {[%clk
0:00:49]} 29... g6 {[%clk 0:00:20.4]} 30. Rxe8+ {[%clk 0:00:44.7]} 30... Bxe8
{[%clk 0:00:21.3]} 31. Ra8 {[%clk 0:00:39.2]} 31... Kg7 {[%clk 0:00:16.9]} 32.
Rxe8 {[%clk 0:00:38.7]} 32... bxc3 {[%clk 0:00:17.2]} 33. Rg8+ {[%clk
0:00:38.4]} 33... Kf6 {[%clk 0:00:17.4]} 34. Nd5+ {[%clk 0:00:39]} 34... Ke6
{[%clk 0:00:17.1]} 35. Nxc3+ {[%clk 0:00:33]} 35... Ke7 {[%clk 0:00:17.6]} 36.
Nd5+ {[%clk 0:00:32.9]} 36... Ke6 {[%clk 0:00:18.5]} 37. Re8+ {[%clk 0:00:29.5]}
37... Kd7 {[%clk 0:00:18.7]} 38. Bb5+ {[%clk 0:00:30.2]} 1-0

[Event "Early-Titled-Tuesday-Blitz-December-26-2023"]
[Site "Chess.com"]
[Date "2023.12.26"]
[Round "7"]
[White "slidingknight2775"]
[Black "PeshkaCh"]
[Result "0-1"]
[WhiteElo "2691"]
[BlackElo "2843"]
[TimeControl "180+1"]
[EndTime "9:17:01 PST"]
[Termination "PeshkaCh won by resignation"]

1. Nf3 {[%clk 0:03:00.9]} 1... Nf6 {[%clk 0:03:00.2]} 2. g3 {[%clk 0:03:01.2]}
2... g6 {[%clk 0:03:00.2]} 3. Bg2 {[%clk 0:03:01.7]} 3... Bg7 {[%clk 0:03:01.1]}
4. O-O {[%clk 0:03:02.5]} 4... O-O {[%clk 0:03:01.6]} 5. c4 {[%clk 0:03:03.4]}
5... c5 {[%clk 0:03:02.1]} 6. d4 {[%clk 0:03:03.4]} 6... cxd4 {[%clk 0:03:02.5]}
7. Nxd4 {[%clk 0:03:04.3]} 7... Nc6 {[%clk 0:03:03.3]} 8. Nc3 {[%clk 0:03:04]}
8... Qa5 {[%clk 0:03:03.8]} 9. Nb3 {[%clk 0:02:56.5]} 9... Qh5 {[%clk
0:03:04.1]} 10. Nd5 {[%clk 0:02:49.8]} 10... Nxd5 {[%clk 0:02:55.2]} 11. cxd5
{[%clk 0:02:50.7]} 11... Ne5 {[%clk 0:02:54.7]} 12. Bd2 {[%clk 0:02:35.7]} 12...
d6 {[%clk 0:02:53.6]} 13. Bc3 {[%clk 0:02:30.2]} 13... Bh3 {[%clk 0:02:49.3]}
14. f3 {[%clk 0:02:26.9]} 14... Bxg2 {[%clk 0:02:44]} 15. Kxg2 {[%clk
0:02:27.8]} 15... Nc4 {[%clk 0:02:44.9]} 16. Qc1 {[%clk 0:01:54.5]} 16... Qxd5
{[%clk 0:02:33.7]} 17. Bxg7 {[%clk 0:01:49.2]} 17... Kxg7 {[%clk 0:02:34.6]} 18.
Qc3+ {[%clk 0:01:49.5]} 18... Ne5 {[%clk 0:02:27.3]} 19. Rfd1 {[%clk 0:01:33.1]}
19... Qc4 {[%clk 0:02:26.1]} 20. Rac1 {[%clk 0:01:30.5]} 20... Qxe2+ {[%clk
0:02:24.9]} 21. Kh1 {[%clk 0:01:28.6]} 21... Rac8 {[%clk 0:02:22.2]} 22. Qd4
{[%clk 0:01:24.4]} 22... Qxf3+ {[%clk 0:02:11.6]} 23. Kg1 {[%clk 0:01:23.5]}
23... Qf6 {[%clk 0:02:09.2]} 24. Kg2 {[%clk 0:01:19.1]} 24... Qf3+ {[%clk
0:01:58.9]} 25. Kg1 {[%clk 0:01:18.9]} 25... Qe2 {[%clk 0:01:59.4]} 26. Rxc8
{[%clk 0:01:13.5]} 26... Rxc8 {[%clk 0:01:58]} 27. Nc1 {[%clk 0:01:14.1]} 27...
Qg4 {[%clk 0:01:33.1]} 28. Qxg4 {[%clk 0:01:06]} 28... Nxg4 {[%clk 0:01:34]} 29.
Ne2 {[%clk 0:01:03.2]} 29... Rc2 {[%clk 0:01:32.7]} 30. Nf4 {[%clk 0:01:03.2]}
30... Rxb2 {[%clk 0:01:29.2]} 31. Rc1 {[%clk 0:01:00.4]} 31... Nxh2 {[%clk
0:00:52.4]} 32. Rc7 {[%clk 0:00:59.8]} 32... Nf3+ {[%clk 0:00:52.5]} 33. Kf1
{[%clk 0:00:58.7]} 33... Nd4 {[%clk 0:00:49.6]} 34. Rxe7 {[%clk 0:00:56.7]}
34... Nf5 {[%clk 0:00:49.2]} 35. Rd7 {[%clk 0:00:54.3]} 35... Nxg3+ {[%clk
0:00:49.4]} 36. Ke1 {[%clk 0:00:54.7]} 36... h5 {[%clk 0:00:47.4]} 37. Rxd6
{[%clk 0:00:52.2]} 37... h4 {[%clk 0:00:45.8]} 38. Rd7 {[%clk 0:00:47.2]} 38...
Rb1+ {[%clk 0:00:38.6]} 39. Kd2 {[%clk 0:00:42.7]} 39... Rb4 {[%clk 0:00:32.8]}
40. Ne6+ {[%clk 0:00:37.4]} 40... Kf6 {[%clk 0:00:32.8]} 41. Nc7 {[%clk
0:00:38.2]} 41... Nf5 {[%clk 0:00:25.7]} 42. Rd3 {[%clk 0:00:31.5]} 42... Rd4
{[%clk 0:00:24.9]} 43. Nd5+ {[%clk 0:00:30.3]} 43... Ke5 {[%clk 0:00:24.6]} 0-1